bitfinex/quotes_ETHUSD_20260225
["timestamp","ask_amount","ask_price","bid_price","bid_amount"]
[1772059901036,0.002,2080.6,2080.0,2.188]
[1772059901216,6.29609948,2081.0,2080.0,2.188]
[1772059901608,0.002,2080.8,2080.0,2.188]
[1772059901911,0.002,2080.8,2080.2,1.20180751]
[1772059902425,0.002,2081.1,2080.2,1.20180751]
[1772059902947,7.49692951,2081.9,2080.5,7.008474]
[1772059903111,6.29609948,2081.9,2080.6,4.438598]
[1772059903311,7.49692622,2081.9,2080.5,2.83458621]
[1772059903510,7.49692622,2081.9,2080.3,2.31518016]
[1772059903821,7.49692622,2081.9,2080.2,1.20180751]
[1772059904016,7.49692622,2081.9,2080.1,4.80723007]
[1772059904243,7.49692622,2081.9,2080.3,2.186]
[1772059904554,6.29609948,2081.7,2080.3,2.186]
[1772059904855,6.29609948,2081.5,2080.1,4.80723007]
[1772059905012,6.29609948,2081.5,2080.2,2.184]
[1772059905210,6.29609948,2081.5,2080.2,2.183]
[1772059907335,6.29609948,2081.3,2080.3,1.20174974]
[1772059907821,2.31256382,2081.3,2080.3,1.20174974]
[1772059908030,6.29609948,2081.2,2080.3,1.20174974]
[1772059908539,6.29609948,2080.9,2079.8,1.20299587]
[1772059909432,7.49756045,2080.8,2079.8,0.001]
[1772059910738,6.29609948,2080.7,2079.8,0.001]
[1772059911349,4.8058439,2081.1,2079.8,0.001]
[1772059911350,18.44360444,2081.4,2080.5,2.31256382]
[1772059911540,6.5,2081.4,2080.6,3.02995]
[1772059912041,1.20093328,2081.8,2080.6,3.02995]
[1772059912242,1.20093328,2081.8,2080.6,5.34251382]
[1772059912243,6.5,2081.6,2080.6,5.34251382]
[1772059912612,18.44360444,2081.5,2080.6,5.34251382]
[1772059912816,24.94360444,2081.5,2080.6,3.02995]
[1772059913121,24.94360444,2081.5,2080.6,1.14595]
[1772059913122,6.5,2081.4,2080.6,1.14595]
[1772059913520,6.5,2081.2,2080.6,1.14595]
[1772059914222,6.5,2081.6,2080.6,1.14595]
[1772059914419,18.44360444,2081.4,2080.7,2.50983]
[1772059915015,0.002,2081.1,2080.7,2.50983]
[1772059915316,0.002,2081.1,2080.6,1.14595]
[1772059917548,18.44560444,2081.1,2080.7,2.173]
[1772059917720,18.44560444,2081.1,2080.5,4.80630587]
[1772059917920,18.44560444,2081.1,2080.6,2.173]
[1772059918243,18.44560444,2081.1,2080.5,4.80630587]
[1772059918547,18.44560444,2081.1,2080.7,2.173]
[1772059918950,0.002,2081.1,2080.7,2.173]
[1772059919947,0.002,2081.1,2080.8,1.20146097]
[1772059921045,18.44560444,2081.1,2080.8,3.37146097]
[1772059921254,6.502,2081.3,2080.8,3.37146097]
[1772059921454,6.502,2081.3,2080.8,1.20146097]
[1772059921749,6.502,2081.3,2079.8,0.001]
[1772059921955,6.5,2081.1,2079.8,0.001]
[1772059922152,6.5,2081.1,2079.9,0.998]
[1772059923544,6.502,2081.3,2080.4,3.23620113]
[1772059923744,7.70318226,2081.3,2080.0,3.23720113]
[1772059924046,6.502,2081.3,2080.2,1.20180751]
[1772059925045,7.70318029,2081.3,2080.3,2.167]
[1772059925247,7.70318029,2081.3,2080.4,2.166]
[1772059925548,7.70318029,2081.3,2080.4,2.1652]
[1772059927132,7.70318029,2081.3,2080.5,1.20163422]
[1772059927644,7.70318029,2081.3,2080.6,2.162]
[1772059928632,0.002,2081.1,2080.6,2.162]
[1772059928946,5.99200002,2081.1,2080.6,2.162]
[1772059929245,5.99200002,2081.1,2080.7,1.20151871]
[1772059930630,5.99200002,2081.1,2080.6,2.162]
[1772059930852,5.99200002,2081.1,2080.6,3.36357135]
[1772059931539,7.19329598,2081.1,2080.2,1.20274974]
[1772059931848,7.19329598,2081.1,2080.2,2.159]
[1772059932146,7.19329598,2081.1,2080.2,0.001]
[1772059932345,7.19329598,2081.1,2080.0,0.001]
[1772059933446,6.24550001,2080.7,2080.0,0.001]
[1772059933662,6.24550001,2080.5,2080.0,0.001]
[1772059933956,6.24550001,2080.3,2079.2,1.20534254]
[1772059934741,6.24550001,2080.3,2079.2,1.20538489]
[1772059934956,6.24550001,2080.3,2079.2,0.003]
[1772059935651,6.24550001,2080.1,2079.2,0.003]
[1772059937143,6.24550001,2079.8,2079.2,0.003]
[1772059937525,6.24550001,2079.8,2079.0,0.003]
[1772059937734,6.24400001,2079.6,2079.0,0.003]
[1772059939758,7.44617174,2079.6,2079.0,0.003]
[1772059940073,7.44621208,2079.5,2079.0,0.003]
[1772059940359,7.44621208,2079.5,2079.0,0.0022]
[1772059941063,7.44621208,2079.5,2079.2,0.001]
[1772059941453,7.44621208,2079.5,2078.3,2.49288176]
[1772059941635,7.44621208,2079.5,2079.0,0.001]
[1772059941835,7.44621208,2079.5,2078.3,2.49288176]
[1772059941836,7.44621208,2079.5,2078.3,2.49289339]
[1772059942035,7.44621208,2079.5,2078.7,0.001]
[1772059943260,7.44621208,2079.5,2078.3,1.29]
[1772059945137,6.24350001,2079.2,2078.3,1.29]
[1772059945764,6.24350001,2079.0,2078.3,1.29]
[1772059945956,6.24350001,2079.0,2078.3,0.29134699]
[1772059945957,9.48492449,2079.0,2078.3,0.29134699]
[1772059946140,9.48492449,2079.0,2077.3,4.81381937]
[1772059946141,6.24350001,2078.6,2077.3,4.81381937]
[1772059946335,6.24350001,2078.3,2076.8,4.81493648]
[1772059946535,6.24350001,2077.4,2075.9,8.05831133]
[1772059946739,6.24350001,2077.4,2076.3,15.939472]
[1772059946957,6.24350001,2077.4,2076.3,5.901371]
[1772059947265,6.24350001,2077.4,2076.3,2.141]
[1772059947769,6.24350001,2077.2,2076.4,1.20400693]
[1772059950584,1.20360117,2077.1,2076.3,3.34504174]
[1772059951173,7.44707259,2077.2,2076.3,3.34504174]
[1772059951340,6.24350001,2077.2,2076.3,3.34504174]
[1772059951536,7.44704718,2077.2,2076.3,3.34504174]
[1772059951754,6.24350001,2077.2,2076.3,3.34504174]
[1772059952152,7.44704379,2077.2,2076.3,3.34504174]
[1772059952563,7.44706789,2077.2,2076.3,3.34504174]
[1772059952888,6.24350001,2077.2,2076.3,3.34504174]
[1772059953846,6.24350001,2077.2,2076.5,0.001]
[1772059954050,7.32130065,2077.2,2076.5,0.001]
[1772059954466,1.20336943,2077.5,2076.5,0.001]
[1772059954788,4.81322998,2077.7,2076.5,0.001]
[1772059954789,6.18061901,2077.9,2076.6,3.356665]
[1772059954991,6.18061901,2077.9,2076.7,5.37442448]
[1772059955157,6.18061901,2077.9,2076.9,27.474688]
[1772059955356,7.38289889,2078.0,2076.9,15.36982398]
[1772059955578,1.20227988,2078.0,2076.9,0.63876198]
[1772059955781,6.18061901,2077.7,2076.5,0.001]
[1772059956077,6.18061901,2078.1,2077.0,3.24142448]
[1772059956249,7.3832359,2078.8,2077.1,2.288759]
[1772059956443,7.3832359,2078.8,2077.4,1.20342736]
[1772059956967,7.3832359,2078.8,2077.7,12.754658]
[1772059957676,7.3832359,2078.8,2077.9,3.24142448]
[1772059957876,7.3832359,2078.8,2078.0,2.135]
[1772059958863,7.3832359,2078.8,2078.1,1.20302199]
[1772059959051,1.20261689,2078.8,2078.1,1.20302199]
[1772059959253,1.2025012,2079.1,2078.1,1.20302199]
[1772059959474,1.2025012,2079.1,2078.2,3.24142448]
[1772059959670,1.2025012,2079.1,2078.1,1.20302199]
[1772059959887,1.2025012,2079.1,2078.2,3.24142448]
[1772059960387,4.81064457,2079.6,2078.5,3.24142448]
[1772059960388,4.80885967,2079.5,2078.5,3.24142448]
[1772059960598,4.80885967,2079.5,2078.6,2.131]
[1772059960756,7.38480391,2079.6,2078.7,1.20267474]
[1772059961452,6.18061901,2079.5,2078.2,11.809117]
[1772059961650,6.18061901,2079.5,2078.4,3.24142448]
[1772059961855,6.18061901,2079.5,2078.5,23.724224]
[1772059962081,1.2041849,2079.6,2078.5,23.724224]
[1772059962262,1.20417367,2079.6,2078.5,23.724224]
[1772059962892,7.38479268,2079.6,2078.4,3.24142448]
[1772059963088,7.38479268,2079.6,2078.2,1.20290916]
[1772059963280,7.38479268,2079.6,2078.1,8.05338329]
[1772059963281,7.38479268,2079.6,2078.5,2.132]
[1772059964487,7.38479268,2079.6,2078.6,12.111758]
[1772059964868,7.38479268,2079.6,2078.6,2.13]
[1772059967163,7.38479268,2079.6,2078.7,1.20267474]
[1772059968079,0.002,2079.4,2078.7,1.20267474]
[1772059968289,6.18061901,2079.3,2078.7,1.20267474]
[1772059969799,1.20431763,2079.4,2078.7,1.2026259]
[1772059969996,0.002,2079.4,2078.7,1.2026259]
[1772059970168,1.2042929,2079.4,2078.7,1.20138429]
[1772059970672,0.002,2079.4,2078.7,1.20138429]
[1772059970877,1.20428529,2079.4,2078.7,1.20138429]
[1772059971331,7.3849043,2079.4,2078.7,1.20138429]
[1772059971680,7.3849043,2079.4,2078.6,2.13]
[1772059971886,7.3849043,2079.4,2078.6,1.20272887]
[1772059972086,7.3849043,2079.4,2078.6,3.32372887]
[1772059972298,7.3849043,2079.4,2078.6,1.20272887]
[1772059972499,7.3849043,2079.4,2078.2,1.2029641]
[1772059972674,7.3849043,2079.4,2078.4,2.12]
[1772059973086,7.3849043,2079.4,2078.5,2.121]
[1772059973406,7.3849043,2079.4,2078.3,2.12]
[1772059973985,7.3849043,2079.4,2078.4,1.20284834]
[1772059975006,7.3849043,2079.4,2078.3,3.32287013]
[1772059976979,7.3849043,2079.4,2078.3,2.12]
[1772059977183,7.3849043,2079.4,2078.1,1.20299874]
[1772059977684,7.3849043,2079.4,2078.3,23.300477]
[1772059977884,7.3849043,2079.4,2078.4,23.683332]
[1772059978221,7.3849043,2079.4,2078.5,3.24142448]
[1772059978394,7.3849043,2079.4,2078.6,1.2027326]
[1772059979283,7.3849043,2079.4,2078.7,2.619373]
[1772059979284,0.002,2079.4,2078.7,2.619373]
[1772059979485,1.20419519,2079.6,2078.8,8.235976]
[1772059979486,0.002,2079.6,2078.8,8.235976]
[1772059979686,1.20192307,2080.0,2079.8,4.97647555]
[1772059979887,6.34972836,2080.1,2079.2,2.31557179]
[1772059980101,0.002,2080.9,2079.1,2.113]
[1772059980102,1.20163172,2080.6,2079.6,10.799058]
[1772059980280,1.20155487,2080.7,2079.8,2.31557179]
[1772059980478,1.20155487,2080.7,2080.0,1.20192307]
[1772059980679,1.20150067,2080.8,2080.0,1.20192307]
[1772059980909,1.20150067,2080.8,2080.1,2.113]
[1772059981207,1.20150067,2080.8,2080.2,2.112]
[1772059981378,1.20344699,2080.9,2080.2,2.112]
[1772059981582,7.55117535,2080.9,2080.0,3.31392307]
[1772059981777,0.002,2080.9,2080.1,2.31557179]
[1772059982009,0.002,2080.9,2080.2,12.555307]
[1772059982308,0.002,2080.9,2080.1,2.31557179]
[1772059982309,7.55113612,2080.9,2080.0,2.112]
[1772059982518,7.55113612,2080.9,2079.6,2.31557179]
[1772059982519,7.55113612,2080.9,2079.7,3.31506004]
[1772059983014,4.80761295,2081.3,2079.7,3.31506004]
[1772059983015,6.34772836,2083.1,2081.5,3.780981]
[1772059983222,6.34772836,2083.1,2082.2,1.59533416]
[1772059983379,6.34772836,2083.1,2081.6,2.112]
[1772059983781,2.31557179,2083.2,2081.0,5.59922998]
[1772059983782,6.34772836,2082.5,2081.3,2.06]
[1772059984483,6.34772836,2082.5,2081.4,1.20111463]
[1772059984484,7.5482662,2082.4,2081.4,1.20111463]
[1772059984788,6.34772836,2082.2,2081.3,2.06]
[1772059986016,6.34772836,2082.2,2081.1,1.20125135]
[1772059986331,6.34772836,2082.2,2081.2,1.45109962]
[1772059986605,6.34772836,2082.0,2081.2,1.45109962]
[1772059986903,1.20071082,2082.1,2080.8,7.12140671]
[1772059986904,6.34772836,2081.9,2080.8,2.41255]
[1772059987110,6.34772836,2081.9,2081.0,2.31557179]
[1772059987307,1.20058066,2082.4,2081.1,8.427173]
[1772059987308,6.34772836,2082.3,2081.1,8.427173]
[1772059987515,6.34772836,2082.3,2081.3,2.31557179]
[1772059987726,2.32,2082.6,2081.4,7.799168]
[1772059987727,9.8681572,2082.6,2081.4,7.799168]
[1772059987880,2.31557179,2082.2,2080.7,1.20151871]
[1772059988085,6.34772836,2082.1,2080.8,2.922053]
[1772059988389,6.34772836,2082.1,2080.7,1.20151871]
[1772059988591,1.20076849,2082.0,2080.7,1.20151871]
[1772059988793,6.34772836,2081.9,2080.7,1.20151871]
[1772059990105,6.34772836,2081.8,2080.7,1.20151871]
[1772059990706,7.54866989,2081.7,2080.7,1.20151871]
[1772059990909,6.34772836,2081.6,2080.6,2.157]
[1772059991113,6.34772836,2081.6,2080.6,3.35857267]
[1772059991717,6.34772836,2081.6,2080.3,1.20174974]
[1772059992088,6.34772836,2081.6,2080.2,6.96099899]
[1772059992089,6.34772836,2081.6,2080.2,1.20177099]
[1772059992287,3.51651332,2081.7,2080.2,1.20177099]
[1772059992288,6.34772836,2081.3,2080.2,1.20177099]
[1772059993094,6.34772836,2081.1,2080.2,1.20177099]
[1772059994229,6.34772836,2081.1,2079.4,4.8089904]
[1772059994230,6.34772836,2081.0,2079.8,1.20203865]
[1772059995126,7.54924707,2080.7,2079.4,1.20226988]
[1772059995508,7.54924707,2080.7,2079.9,0.001]
[1772059995915,6.34772836,2080.4,2079.4,1.20226988]
[1772059996101,6.34772836,2080.4,2079.6,0.001]
[1772059997025,6.34772836,2080.2,2079.6,0.001]
[1772059999629,9.07686623,2079.8,2079.4,0.001]
[1772059999831,6.34772836,2079.7,2079.4,0.001]
[1772060000212,6.34772836,2079.7,2078.8,0.001]
[1772060000415,6.34772836,2079.4,2078.8,0.001]
[1772060000930,6.34772836,2079.2,2078.5,0.001]
[1772060001427,6.34772836,2079.0,2078.5,0.001]
[1772060003013,6.34772836,2079.0,2077.5,4.81303208]
[1772060003014,6.34772836,2078.9,2077.3,4.81390481]
[1772060003330,3.51801515,2079.1,2077.6,5.8511041]
[1772060003331,7.55017172,2079.1,2077.6,5.8511041]
[1772060003535,7.55017172,2079.1,2077.7,1.20325359]
[1772060005031,6.34772836,2078.8,2077.7,1.20325359]
[1772060005411,6.34772836,2078.6,2077.3,4.81390481]
[1772060006832,6.34772836,2078.6,2077.3,1.20348529]
[1772060007629,6.23830824,2078.4,2077.3,1.20348529]
[1772060008405,6.23830824,2078.4,2077.9,0.001]
[1772060009539,1.20290622,2078.3,2077.9,0.001]
[1772060010837,7.44119708,2078.4,2077.9,0.001]
[1772060011207,6.23830824,2078.3,2077.6,0.001]
[1772060011635,6.35931587,2078.1,2077.6,0.001]
[1772060012135,1.49,2078.2,2077.6,0.001]
[1772060012809,1.20293495,2078.3,2077.6,0.001]
[1772060013742,11.17072896,2078.4,2077.6,0.001]
[1772060014342,6.35931587,2078.3,2077.6,0.001]
[1772060015030,11.16976336,2078.9,2077.7,2.31557179]
[1772060015339,1.20261689,2078.8,2077.7,8.16767589]
[1772060015728,1.20261689,2078.8,2077.8,1.20319568]
[1772060016721,7.56193276,2078.8,2077.8,1.20319568]
[1772060018617,7.56193276,2078.8,2077.6,0.001]
[1772060019045,7.56193276,2078.8,2077.6,1.20430839]
[1772060020244,7.56193276,2078.8,2077.8,5.8513041]
[1772060020572,4.81044749,2078.9,2078.1,1.20302199]
[1772060020737,4.81044749,2078.9,2078.1,7.05432609]
[1772060021057,3.50154726,2079.0,2078.1,7.05432609]
[1772060021256,4.80924546,2079.4,2078.4,5.8513041]
[1772060021959,1.20225391,2079.5,2078.7,2.31557179]
[1772060022138,2.72913787,2079.8,2078.8,5.8493041]
[1772060022139,4.80827267,2079.8,2078.8,5.8493041]
[1772060022534,4.80827267,2079.8,2078.9,7.05186314]
[1772060022939,0.002,2079.1,2078.9,7.05186314]
[1772060023139,4.80827267,2079.8,2078.9,7.05186314]
[1772060023365,4.80827267,2079.8,2078.9,1.20255904]
[1772060023535,6.35931587,2079.5,2078.2,4.81174574]
[1772060024149,6.35931587,2079.5,2078.4,2.31557179]
[1772060024356,6.35931587,2079.5,2078.2,4.81174574]
[1772060024655,6.35931587,2079.3,2078.2,4.81174574]
[1772060026630,1.20238553,2079.2,2078.2,4.81174574]
[1772060027164,6.35931587,2079.6,2078.4,2.31557179]
[1772060027330,1.20213374,2079.7,2078.7,2.31557179]
[1772060027662,1.20208043,2079.8,2078.7,8.16487589]
[1772060028043,1.20208043,2079.8,2078.8,5.8493041]
[1772060028774,1.20208043,2079.8,2078.9,1.20255904]
[1772060029564,1.20208043,2079.8,2078.8,5.8493041]
[1772060029769,7.56134271,2079.9,2078.9,2.103]
[1772060030273,7.56134271,2079.9,2079.0,2.31557179]
[1772060030866,1.20202684,2079.9,2079.0,2.31557179]
[1772060031043,1.20202684,2079.9,2079.0,9.36736218]
[1772060031391,1.20202684,2079.9,2079.1,5.8493041]
[1772060032065,4.80992345,2080.0,2079.1,5.8493041]
[1772060032272,1.20392805,2080.0,2079.3,2.31557179]
[1772060032573,7.56324392,2080.0,2078.5,5.85003194]
[1772060032771,6.35931587,2079.8,2078.5,5.85003194]
[1772060032969,6.35931587,2079.6,2078.5,2.099]
[1772060033267,6.35931587,2079.6,2077.8,9.52674389]
[1772060033268,6.35931587,2079.6,2078.2,4.64727726]
[1772060033565,6.35931587,2079.6,2078.2,1.20294103]
[1772060034744,6.35931587,2079.6,2078.2,3.30194103]
[1772060035154,6.35931587,2079.4,2078.9,0.001]
[1772060035356,6.35931587,2079.4,2078.9,0.0001]
[1772060036074,6.35931587,2079.4,2078.6,0.001]
[1772060037167,6.00729047,2079.2,2078.6,0.001]
[1772060039269,1.20244336,2079.1,2078.6,0.001]
[1772060039567,7.20973383,2079.1,2078.6,0.001]
[1772060040561,1.2023277,2079.3,2078.6,0.001]
[1772060040753,1.20215426,2079.6,2078.6,4.64827726]
[1772060040953,7.20944473,2079.6,2078.7,6.96284905]
[1772060041153,7.20944473,2079.6,2078.6,0.001]
[1772060041847,7.20944473,2079.6,2078.6,4.64827726]
[1772060042051,1.20215426,2079.6,2078.8,4.64727726]
[1772060042761,1.20413338,2079.7,2078.8,6.73327726]
[1772060042980,0.002,2079.7,2078.8,6.73327726]
[1772060043357,0.002,2079.7,2078.9,5.8498363]
[1772060044560,0.002,2079.9,2079.4,4.64527726]
[1772060045653,0.002,2079.9,2079.4,5.84752891]
[1772060045878,0.002,2079.9,2079.4,1.20225165]
[1772060047349,0.002,2079.9,2079.4,5.84752891]
[1772060047974,0.002,2079.9,2079.5,2.082]
[1772060049371,0.002,2079.7,2079.5,2.082]
[1772060050085,0.002,2080.0,2079.6,1.20215426]
[1772060051099,0.002,2080.0,2079.6,5.84543152]
[1772060051405,0.002,2080.2,2079.6,9.0874533]
[1772060051583,0.002,2080.2,2079.7,4.64327726]
[1772060051904,0.002,2080.5,2080.0,4.64327726]
[1772060052070,0.002,2080.5,2080.1,1.20186529]
[1772060052271,0.002,2080.5,2080.2,2.085]
[1772060052471,1.2013783,2081.0,2080.2,6.72827726]
[1772060052708,1.2013783,2081.0,2080.3,4.64327726]
[1772060053087,1.20131422,2081.1,2080.3,4.64327726]
[1772060053286,4.80499984,2081.2,2080.3,4.64327726]
[1772060053287,1.20124142,2081.2,2080.3,4.64327726]
[1772060053487,1.20121171,2081.3,2080.3,4.64327726]
[1772060054005,1.20313606,2081.4,2080.5,7.88529904]
[1772060054207,0.002,2081.4,2080.6,5.84485372]
[1772060055081,0.002,2081.4,2080.7,4.64327726]
[1772060056402,0.002,2081.4,2080.8,4.64327726]
[1772060056614,0.002,2081.4,2080.9,2.085]
[1772060057581,6.00929047,2081.4,2080.2,12.69230821]
[1772060057781,6.00929047,2081.4,2080.3,2.084]
[1772060058207,6.00729047,2081.2,2080.2,1.20177256]
[1772060058408,6.00729047,2081.2,2080.4,2.084]
[1772060058714,6.00729047,2081.2,2079.6,2.084]
[1772060059412,6.00729047,2081.2,2079.6,6.72727726]
[1772060059610,6.00729047,2081.2,2079.6,2.084]
[1772060060323,6.00729047,2081.2,2079.4,8.04994905]
[1772060060324,6.00729047,2081.0,2079.4,8.04994905]
[1772060060494,6.00729047,2080.8,2079.4,8.04994905]
[1772060060702,6.00729047,2080.8,2079.4,4.80792727]
[1772060061009,6.00729047,2080.8,2079.4,1.20226988]
[1772060062295,6.00729047,2080.8,2079.4,5.84554714]
[1772060062496,6.00729047,2080.6,2079.6,0.001]
[1772060062800,6.00729047,2080.6,2079.6,4.64427726]
[1772060063018,1.20151871,2080.7,2079.7,4.64327726]
[1772060063393,1.2014937,2080.8,2079.7,4.64327726]
[1772060064301,7.20878417,2080.8,2079.7,4.64327726]
[1772060064602,7.20875403,2080.8,2079.8,1.20203865]
[1772060066320,7.20875403,2080.8,2079.8,5.84531591]
[1772060066321,6.00729047,2080.8,2079.8,5.84531591]
[1772060066500,6.00729047,2080.8,2079.9,7.88529904]
[1772060067119,6.00729047,2080.8,2080.0,1.20192307]
[1772060067322,6.00729047,2080.8,2080.1,2.075]
[1772060067908,1.20144609,2080.9,2080.1,2.075]
[1772060069227,4.80543714,2081.0,2080.2,1.20180751]
[1772060069426,7.3277513,2081.0,2080.2,1.20180751]
[1772060072524,6.1264058,2081.0,2080.2,1.20180751]
[1772060073230,6.1264058,2081.0,2080.2,5.84508477]
[1772060073441,6.26389755,2081.1,2080.3,4.64327726]
[1772060075518,6.26389755,2081.1,2080.4,1.20169198]
[1772060076135,6.26389755,2081.1,2080.4,1.20269198]
[1772060076339,0.002,2081.2,2080.4,5.84596924]
[1772060077534,1.20323296,2081.2,2080.4,5.84596924]
[1772060077730,6.26589755,2081.2,2080.4,5.84596924]
[1772060080436,7.46713644,2081.2,2080.5,2.064]
[1772060080605,6.26589755,2081.2,2080.5,2.064]
[1772060082546,6.26589755,2081.2,2080.6,1.20157646]
[1772060084345,7.46712789,2081.2,2080.6,1.20157646]
[1772060084516,7.46712789,2081.2,2080.6,3.26457646]
[1772060084728,7.46712789,2081.2,2080.5,1.20158138]
[1772060086534,6.26589755,2081.2,2080.5,1.20158138]
[1772060086741,7.46713225,2081.2,2080.5,1.20158138]
[1772060088215,7.46713225,2081.2,2080.6,2.062]
[1772060089019,6.26589755,2081.2,2080.7,1.20151871]
[1772060089214,7.4671325,2081.2,2080.7,1.20151871]
[1772060089715,6.26589755,2081.2,2080.7,1.20151871]
[1772060089915,7.46712781,2081.2,2080.7,1.20151871]
[1772060090337,0.002,2081.0,2080.7,1.20151871]
[1772060091462,0.002,2081.0,2080.6,3.26352878]
[1772060091823,6.26589755,2081.0,2080.4,1.20265847]
[1772060092019,6.26589755,2081.0,2080.5,2.062]
[1772060092220,6.26589755,2081.0,2080.4,2.064]
[1772060092442,6.26589755,2081.0,2080.4,0.001]
[1772060093239,6.26389755,2080.8,2080.4,0.001]
[1772060093438,6.26389755,2080.8,2080.1,0.001]
[1772060093946,6.26389755,2080.8,2079.9,0.001]
[1772060093947,6.26389755,2080.6,2079.9,0.001]
[1772060094149,6.26389755,2080.4,2079.6,0.001]
[1772060094315,6.26389755,2080.2,2079.6,0.001]
[1772060094646,2.222,2080.3,2079.6,0.001]
[1772060094647,8.85331267,2079.7,2079.6,0.001]
[1772060095222,8.85331267,2079.7,2079.1,0.001]
[1772060095223,6.26389755,2079.4,2079.1,0.001]
[1772060095429,6.26389755,2079.4,2079.0,0.001]
[1772060095430,6.26389755,2079.4,2079.0,0.0008]
[1772060096124,6.26389755,2079.4,2078.6,0.001]
[1772060097225,5.96313034,2079.2,2077.7,5.22223501]
[1772060099148,5.96313034,2079.2,2077.7,1.20321323]
[1772060099347,1.20244336,2079.1,2077.7,1.20321323]
[1772060099550,5.96313034,2079.0,2077.7,1.20321323]
[1772060100447,1.20242916,2079.2,2078.1,3.24202178]
[1772060100645,7.1655595,2079.2,2078.2,4.64427726]
[1772060101027,7.1655595,2079.2,2077.8,3.24202178]
[1772060101227,7.1655595,2079.2,2077.8,2.31730989]
[1772060101430,7.1655595,2079.2,2077.9,1.20313778]
[1772060102326,7.1655595,2079.2,2077.8,1.20318222]
[1772060102327,5.96313034,2079.0,2077.8,1.20318222]
[1772060102758,5.96313034,2079.0,2077.8,3.52049211]
[1772060103661,5.96313034,2079.0,2078.1,2.31730989]
[1772060103662,5.96313034,2078.8,2078.1,2.31730989]
[1772060103860,5.96313034,2079.1,2078.1,2.31730989]
[1772060104340,7.16557848,2079.1,2078.1,2.31730989]
[1772060105548,5.96313034,2079.1,2078.2,1.2029641]
[1772060106070,2.223,2079.6,2078.5,4.64427726]
[1772060106071,5.96313034,2079.4,2078.5,4.64427726]
[1772060106272,5.96313034,2079.7,2079.1,2.31730989]
[1772060106495,5.96313034,2079.9,2079.1,2.31730989]
[1772060106668,5.96313034,2079.9,2078.8,2.055]
[1772060106968,5.96313034,2079.9,2079.0,2.31730989]
[1772060107844,5.96313034,2079.9,2079.1,1.20244336]
[1772060108167,7.16511172,2079.9,2079.0,1.20248985]
[1772060109547,7.16511172,2079.9,2078.7,7.12800208]
[1772060109548,7.16511172,2079.9,2078.8,4.81034036]
[1772060110243,5.96313034,2079.9,2079.0,2.31730989]
[1772060111774,7.16511773,2079.9,2079.1,1.20244336]
[1772060111965,7.16511773,2079.9,2078.8,4.81025292]
[1772060112548,5.96313034,2079.9,2078.9,6.96158715]
[1772060112780,7.16511514,2079.9,2078.8,4.81025292]
[1772060113968,7.16511514,2079.9,2079.0,2.31730989]
[1772060113969,5.96313034,2079.9,2079.0,2.31730989]
[1772060114283,5.96313034,2079.9,2079.3,2.31730989]
[1772060114850,5.96313034,2079.9,2079.3,4.37030989]
[1772060115356,5.96313034,2080.2,2079.3,9.01458715]
[1772060115655,1.20172411,2080.4,2079.6,2.31730989]
[1772060115656,5.96313034,2080.4,2079.6,2.31730989]
[1772060115856,7.16482367,2080.4,2079.7,1.20209645]
[1772060116088,5.96313034,2080.4,2079.7,1.20209645]
[1772060116493,1.20160072,2080.6,2079.7,1.20209645]
[1772060116949,5.96313034,2080.7,2079.7,1.20209645]
[1772060117151,0.002,2080.2,2079.7,1.20209645]
[1772060117395,0.002,2080.2,2079.7,5.84437371]
[1772060118477,0.002,2080.2,2079.9,2.31730989]
[1772060118652,1.20336445,2081.0,2080.0,6.69627726]
[1772060118968,0.002,2081.0,2080.0,6.69627726]
[1772060119780,5.96513034,2081.0,2080.2,2.31730989]
[1772060120155,5.96513034,2081.0,2080.3,1.20174974]
[1772060121674,0.002,2081.0,2080.3,1.20174974]
[1772060122363,0.002,2081.0,2080.3,5.844027]
[1772060122759,0.002,2081.0,2080.4,4.64227726]
[1772060123249,0.002,2081.0,2080.5,2.31730989]
[1772060123456,0.002,2081.0,2079.9,1.20198086]
[1772060123457,5.96513034,2081.0,2079.9,1.20198086]
[1772060124860,5.96313034,2080.8,2079.9,1.20198086]
[1772060125693,5.96313034,2080.8,2079.7,3.25505335]
[1772060125889,5.96313034,2080.8,2079.7,1.20205335]
[1772060126777,6.19409049,2080.6,2079.5,4.80884175]
[1772060127181,6.19409049,2080.6,2079.5,9.45111901]
[1772060127985,6.19409049,2080.6,2079.7,2.31730989]
[1772060128696,6.19409049,2080.6,2079.9,0.001]
[1772060128910,7.3976892,2080.6,2079.9,0.001]
[1772060130189,6.19609049,2080.6,2079.9,0.001]
[1772060130403,1.20349952,2080.8,2080.0,2.31730989]
[1772060130705,0.002,2080.8,2080.1,4.64027726]
[1772060130880,0.002,2080.8,2080.2,1.20180751]
[1772060131075,5.89770471,2080.8,2080.2,1.20180751]
[1772060131807,5.89770471,2080.8,2080.1,1.20182333]
[1772060133798,7.09722342,2080.7,2080.1,1.20182333]
[1772060136813,5.89770471,2080.8,2080.0,4.807602]
[1772060138420,0.002,2080.8,2080.0,4.807602]
[1772060138588,0.002,2080.8,2080.1,4.64027726]
[1772060138789,0.002,2081.5,2080.7,4.63827726]
[1772060139134,0.002,2081.5,2080.8,4.63827726]
[1772060139412,0.002,2081.5,2080.9,6.95558715]
[1772060139606,0.002,2081.5,2081.0,4.63827726]
[1772060140120,0.002,2081.5,2081.1,6.95558715]
[1772060140322,0.002,2081.5,2081.1,6.95438715]
[1772060140522,0.002,2081.5,2080.9,4.63827726]
[1772060140722,0.002,2081.5,2081.2,1.20123005]
[1772060142333,0.002,2081.6,2081.2,1.20123005]
[1772060142697,0.002,2081.3,2081.2,1.20123005]
[1772060142904,0.002,2081.6,2081.2,1.20123005]
[1772060143105,0.002,2081.6,2081.3,2.055]
[1772060144930,0.002,2081.7,2081.3,2.055]
[1772060144931,0.002,2081.7,2081.4,1.20111463]
[1772060151441,0.002,2081.7,2081.3,1.20112628]
[1772060152221,0.002,2081.7,2081.4,2.066]
[1772060153112,0.002,2081.7,2081.4,7.90538638]
[1772060153512,0.002,2081.7,2081.5,4.63827726]
[1772060153719,0.002,2081.8,2081.4,3.26710912]
[1772060154709,0.002,2081.8,2081.4,7.90538638]
[1772060154916,0.002,2081.8,2081.5,4.63927726]
[1772060155314,1.20053784,2082.4,2081.5,4.63927726]